bitfinex-derivatives/quotes_ETHF0:USTF0_20241008
["timestamp","ask_amount","ask_price","bid_price","bid_amount"]
[1728364481893,1.89139,2431.1,2431.0,0.41141]
[1728364482286,0.41141,2431.0,2430.9,1.21611]
[1728364482503,0.81811,2431.0,2430.9,1.21611]
[1728364482703,0.4067,2431.0,2430.9,1.21611]
[1728364484299,0.81811,2431.0,2430.9,1.21611]
[1728364484804,5.2974,2431.0,2430.7,0.81506]
[1728364485099,0.41146,2430.7,2430.6,1.23046]
[1728364485701,1.48,2430.9,2430.6,0.819]
[1728364485902,1.48,2430.9,2430.7,0.41145]
[1728364485903,0.41145,2430.8,2430.7,0.41145]
[1728364488406,4.52505,2430.8,2430.7,0.41145]
[1728364488601,4.1136,2430.8,2430.7,0.41145]
[1728364489011,1.89143,2430.9,2430.8,0.41144]
[1728364489214,6.00503,2430.9,2430.8,0.41144]
[1728364490710,1.89143,2430.9,2430.8,0.41144]
[1728364491008,3.6145,2431.0,2430.9,0.41143]
[1728364492112,4.02591,2431.0,2430.9,0.41143]
[1728364492707,1.8683,2431.2,2430.6,5.0939]
[1728364492907,2.67639,2431.2,2431.1,0.41139]
[1728364493111,1.19639,2431.2,2431.1,0.41139]
[1728364493311,6.78999,2431.2,2431.1,0.41139]
[1728364493918,2.67639,2431.2,2431.1,0.41139]
[1728364494115,0.4114,2431.1,2431.0,0.4114]
[1728364495012,0.4114,2431.1,2431.0,0.41141]
[1728364498812,2.67638,2431.2,2431.1,0.41139]
[1728364499015,0.41141,2431.0,2430.9,1.23911]
[1728364499813,0.41141,2431.0,2430.9,0.4253]
[1728364499814,1.89141,2431.0,2430.9,0.4253]
[1728364500414,1.89141,2431.0,2430.9,0.83673]
[1728364500613,0.41141,2431.0,2430.9,0.83673]
[1728364502123,1.48,2431.0,2430.8,0.4117]
[1728364502315,0.81213,2430.9,2430.8,0.41144]
[1728364502513,1.20753,2430.9,2430.8,0.41144]
[1728364503714,1.20753,2430.9,2430.7,0.80674]
[1728364503715,0.41144,2430.8,2430.7,0.80674]
[1728364504018,1.20754,2430.9,2430.8,0.41144]
[1728364504518,0.41149,2430.6,2430.5,0.41149]
[1728364504717,1.89149,2430.6,2430.5,0.41149]
[1728364505322,1.48,2430.6,2430.5,0.41149]
[1728364505520,1.89148,2430.6,2430.5,0.41149]
[1728364506417,1.89147,2430.7,2430.4,0.4002]
[1728364506621,0.421,2430.8,2430.4,0.4002]
[1728364506820,0.4007,2430.9,2430.5,1.48]
[1728364507018,3.2078,2431.0,2430.9,0.41143]
[1728364507211,4.4415,2431.3,2430.7,1.48]
[1728364507411,4.4415,2431.3,2431.2,0.41138]
[1728364507412,1.64507,2431.3,2431.2,0.41138]
[1728364507615,3.12507,2431.3,2431.2,0.41138]
[1728364507919,7.23787,2431.3,2431.2,0.41138]
[1728364508313,0.41138,2431.2,2431.1,0.41138]
[1728364508515,0.41138,2431.2,2430.8,1.44851]
[1728364508516,3.12507,2431.3,2431.2,0.41138]
[1728364508927,7.23787,2431.3,2431.2,0.41138]
[1728364509116,0.41139,2431.2,2431.1,0.41139]
[1728364509516,4.52499,2431.2,2431.1,0.41139]
[1728364510125,0.8459,2431.3,2431.2,0.41138]
[1728364510320,0.4249,2431.3,2431.2,0.41138]
[1728364510524,0.41136,2431.3,2431.2,0.41138]
[1728364510822,1.48,2431.4,2431.3,0.41136]
[1728364511126,2.68524,2431.5,2431.4,0.41134]
[1728364511324,2.2739,2431.5,2431.2,0.4113]
[1728364511621,0.41135,2431.4,2431.3,0.41135]
[1728364511919,2.2739,2431.5,2431.4,0.41134]
[1728364511920,2.29104,2431.5,2431.4,0.41134]
[1728364512625,3.2078,2431.6,2431.2,0.4113]
[1728364512825,3.2078,2431.6,2431.5,0.41133]
[1728364513024,0.41129,2431.8,2431.5,0.41133]
[1728364513331,0.41129,2431.8,2431.7,0.41129]
[1728364513729,0.41129,2431.8,2431.7,0.4279]
[1728364516516,0.41129,2431.8,2431.7,0.83919]
[1728364516720,0.41129,2431.8,2431.7,0.4279]
[1728364517622,0.41129,2431.8,2431.7,0.83919]
[1728364518125,0.41129,2431.8,2431.7,0.4279]
[1728364518325,0.41129,2431.8,2431.7,0.83919]
[1728364518929,0.41129,2431.8,2431.7,0.4279]
[1728364519131,0.41129,2431.8,2431.7,0.83919]
[1728364519431,3.2078,2431.9,2431.8,0.41127]
[1728364519625,0.4126,2432.0,2431.9,0.41126]
[1728364520425,0.82384,2432.0,2431.9,0.41126]
[1728364521030,1.48,2432.1,2431.7,1.9079]
[1728364521225,4.23581,2432.3,2432.2,0.41121]
[1728364521226,3.2078,2432.3,2432.2,0.41121]
[1728364521831,2.69126,2432.5,2432.4,0.41117]
[1728364522333,0.8001,2432.5,2432.4,0.41117]
[1728364522921,1.21126,2432.5,2432.4,0.41117]
[1728364524726,3.2078,2432.7,2432.6,0.41114]
[1728364526335,3.61892,2432.7,2432.6,0.41114]
[1728364527835,0.41112,2432.7,2432.6,0.41114]
[1728364528930,0.41114,2432.6,2432.5,0.41115]
[1728364529131,0.41114,2432.6,2432.4,0.41116]
[1728364529435,0.41114,2432.6,2432.5,0.41116]
[1728364530439,0.41114,2432.6,2432.2,1.2413]
[1728364530629,0.41114,2432.6,2432.4,0.41116]
[1728364530630,0.4178,2432.5,2432.4,0.41116]
[1728364531838,0.4178,2432.5,2432.2,1.2413]
[1728364532136,0.4178,2432.5,2431.9,8.52891]
[1728364532137,0.41123,2432.1,2431.9,3.2078]
[1728364532339,0.41126,2431.9,2431.8,0.41127]
[1728364532640,0.79985,2432.0,2431.8,0.41127]
[1728364533033,0.41129,2431.8,2431.5,7.8959]
[1728364533334,3.21,2431.9,2431.5,0.3951]
[1728364533539,3.629,2431.7,2431.2,0.5018]
[1728364533744,0.41132,2431.6,2431.5,0.41133]
[1728364534241,0.41132,2431.6,2431.4,0.41133]
[1728364534242,0.41131,2431.6,2431.4,0.41133]
[1728364534632,0.41131,2431.6,2431.5,0.41133]
[1728364537543,0.41133,2431.5,2431.4,0.41134]
[1728364538234,3.629,2431.7,2431.2,3.2078]
[1728364538435,4.0403,2431.7,2431.5,0.41132]
[1728364541044,4.0403,2431.7,2431.6,0.41131]
[1728364541244,4.0403,2431.7,2431.5,0.41131]
[1728364541445,4.0403,2431.7,2431.1,1.81466]
[1728364541946,0.41132,2431.6,2431.4,0.41133]
[1728364542146,0.4162,2431.5,2431.4,0.41133]
[1728364543551,0.4162,2431.5,2431.1,0.7862]
[1728364543737,0.41135,2431.4,2431.1,0.7862]
[1728364543942,3.6262,2431.5,2431.3,0.41135]
[1728364543943,4.03754,2431.5,2431.3,0.41135]
[1728364545047,4.03754,2431.5,2431.4,0.41134]
[1728364545650,8.15034,2431.5,2431.4,0.41134]
[1728364549746,7.739,2431.5,2431.4,0.41134]
[1728364549950,0.4162,2431.5,2431.4,0.41134]
[1728364550150,0.8303,2431.7,2431.6,0.41131]
[1728364550351,0.419,2431.7,2431.6,0.41131]
[1728364552357,0.419,2431.7,2431.3,4.23837]
[1728364552358,0.3864,2431.8,2431.7,0.41129]
[1728364552553,0.3864,2431.8,2431.4,0.41134]
[1728364552760,3.21,2431.7,2431.5,0.41132]
[1728364552948,3.6213,2431.7,2431.6,0.41131]
[1728364556748,3.21,2431.7,2431.2,0.4017]
[1728364556953,0.41135,2431.4,2431.3,0.41135]
[1728364558373,4.03772,2431.6,2431.2,0.41138]
[1728364558561,3.21,2431.7,2431.2,4.23845]
[1728364558562,0.4113,2431.7,2431.2,4.23845]
[1728364558868,0.4113,2431.7,2431.6,0.41131]
[1728364559265,0.4113,2431.7,2431.2,4.23845]
[1728364559266,0.41131,2431.6,2431.5,0.41131]
[1728364559562,0.4113,2431.7,2431.5,0.41131]
[1728364559863,0.4113,2431.7,2431.6,0.41131]
[1728364560467,0.805,2431.8,2431.1,1.91068]
[1728364560767,0.4113,2431.7,2431.6,0.4113]
[1728364560964,0.805,2431.8,2431.3,1.02839]
[1728364561262,1.21629,2431.8,2431.3,1.02839]
[1728364561465,0.4186,2431.8,2431.7,0.41129]
[1728364561660,3.2078,2431.9,2431.8,0.41127]
[1728364562776,3.2078,2431.9,2431.8,4.52327]
[1728364563669,0.41125,2432.0,2431.9,0.41126]
[1728364564956,0.4266,2432.2,2431.6,4.4828]
[1728364565162,0.41121,2432.2,2432.1,0.41121]
[1728364565363,3.6303,2432.4,2431.7,1.02821]
[1728364565666,0.41121,2432.2,2432.1,0.41121]
[1728364566368,0.4112,2432.3,2432.1,0.41121]
[1728364566563,0.41121,2432.2,2432.1,0.41121]
[1728364566871,0.41121,2432.2,2431.7,0.096]
[1728364567063,0.41121,2432.2,2432.0,0.41123]
[1728364567268,0.41121,2432.2,2431.6,8.29156]
[1728364567469,0.41121,2432.2,2432.1,0.41122]
[1728364568663,0.4112,2432.3,2432.2,0.4112]
[1728364569064,0.41121,2432.2,2432.1,0.41122]
[1728364569273,3.6303,2432.4,2432.2,0.4112]
[1728364569469,4.64042,2432.5,2432.4,0.41117]
[1728364569470,0.4025,2432.5,2432.4,0.41117]
[1728364569771,0.41115,2432.6,2432.5,0.41115]
[1728364570172,0.82433,2432.7,2432.6,0.41114]
[1728364570367,3.5942,2432.8,2432.6,0.41114]
[1728364570666,3.5942,2432.8,2432.2,4.23803]
[1728364570667,0.41112,2432.7,2432.2,4.23803]
[1728364570870,0.41112,2432.7,2432.5,0.41114]
[1728364571265,0.41116,2432.5,2432.1,0.9076]
[1728364571460,0.4112,2432.3,2432.2,0.4112]
[1728364572474,1.60128,2432.4,2432.3,0.41119]
[1728364572776,1.18658,2432.4,2432.3,0.41119]
[1728364574175,0.41118,2432.4,2432.3,0.41119]
[1728364574470,0.41118,2432.4,2432.1,0.8116]
[1728364574471,4.1112,2432.4,2432.1,0.4066]
[1728364574673,0.4112,2432.3,2432.2,0.41119]
[1728364575071,0.41118,2432.4,2432.3,0.41118]
[1728364575578,0.41119,2432.3,2432.2,0.41119]
[1728364576772,3.2078,2432.5,2432.1,0.4066]
[1728364576973,0.41118,2432.4,2432.3,0.41118]
[1728364577366,0.41119,2432.3,2432.2,0.81709]
[1728364578571,0.41121,2432.2,2432.1,0.41121]
[1728364578785,0.8162,2432.2,2432.1,0.41121]
[1728364583385,1.22741,2432.2,2432.1,0.41121]
[1728364583684,0.8162,2432.2,2432.1,0.41121]
[1728364585483,1.22741,2432.2,2432.1,0.41121]
[1728364585671,0.8162,2432.2,2432.1,0.41121]
[1728364585875,1.22741,2432.2,2432.1,0.41121]
[1728364586370,1.22741,2432.2,2432.0,0.4096]
[1728364586371,0.8162,2432.2,2432.0,0.4096]
[1728364586572,0.41122,2432.1,2432.0,0.82083]
[1728364587980,0.41124,2432.0,2431.9,0.41125]
[1728364589779,0.41127,2431.9,2431.7,0.4017]
[1728364589992,0.41127,2431.9,2431.8,0.41127]
[1728364591678,0.83695,2432.0,2431.9,0.41126]
[1728364592583,2.31695,2432.0,2431.9,0.41126]
[1728364592782,1.02815,2431.9,2431.5,3.2078]
[1728364592984,0.41131,2431.7,2431.6,0.4113]
[1728364593184,0.4257,2432.0,2431.5,3.2078]
[1728364593390,1.89127,2431.9,2431.8,0.41126]
[1728364593885,6.00327,2431.9,2431.8,0.41126]
[1728364594587,0.41128,2431.8,2431.7,0.41128]
[1728364594791,1.48,2431.9,2431.5,3.2078]
[1728364594986,1.48,2431.9,2431.8,0.41127]
[1728364598093,1.62825,2432.0,2431.9,0.41126]
[1728364598288,3.2078,2432.1,2432.0,0.41124]
[1728364599181,1.64108,2432.4,2432.3,0.41119]
[1728364599387,1.89117,2432.5,2432.4,0.41117]
[1728364600387,0.41117,2432.5,2432.4,0.41117]
[1728364600795,3.6157,2432.6,2432.2,0.3991]
[1728364601091,0.41121,2432.2,2432.1,0.41121]
[1728364601484,0.41121,2432.2,2431.9,1.2326]
[1728364601485,1.24761,2432.2,2431.9,1.2326]
[1728364601794,0.41122,2432.1,2432.0,0.41123]
[1728364601987,3.62122,2432.1,2432.0,0.41123]
[1728364603091,3.21,2432.1,2432.0,0.41123]
[1728364603487,0.41124,2432.0,2431.9,0.3991]
[1728364603697,0.41126,2431.9,2431.8,0.41127]
[1728364604195,3.62126,2431.9,2431.7,0.41128]
[1728364604391,3.62126,2431.9,2431.8,0.41127]
[1728364606494,3.21,2431.9,2431.8,0.41127]
[1728364608198,3.62126,2431.9,2431.8,0.41127]
[1728364608403,3.21,2431.9,2431.8,0.41127]
[1728364608891,0.41125,2432.0,2431.9,0.41126]
[1728364609999,6.4178,2432.3,2431.6,1.2215]
[1728364610393,0.41125,2432.0,2431.9,0.41125]
[1728364614396,0.41123,2432.1,2432.0,0.41124]
[1728364615003,0.41122,2432.1,2432.0,0.41124]
[1728364615407,4.23803,2432.2,2431.6,3.42035003]
[1728364615607,0.41124,2432.0,2431.9,0.41124]
[1728364619104,0.41124,2432.1,2432.0,0.41124]
[1728364620010,0.41123,2432.1,2432.0,0.41123]
[1728364621621,0.41122,2432.2,2432.1,0.41122]
[1728364621810,3.2078,2432.3,2432.2,0.83451]
[1728364621811,3.619,2432.3,2432.2,0.83451]
[1728364622310,3.2078,2432.3,2432.2,0.83451]
[1728364622506,3.61899,2432.3,2432.2,0.83451]
[1728364623616,3.2078,2432.3,2432.2,0.83451]
[1728364624931,0.41116,2432.5,2432.2,0.4233]
[1728364625107,0.41116,2432.5,2432.4,0.41117]
[1728364625312,3.2078,2432.7,2432.2,0.4233]
[1728364625617,0.41115,2432.6,2432.5,0.41115]
[1728364626012,0.41117,2432.5,2432.4,0.41116]
[1728364627806,0.41115,2432.6,2432.5,0.41114]
[1728364629909,3.2078,2432.7,2432.1,1.12406]
[1728364630113,3.2078,2432.7,2432.6,0.41114]
[1728364630515,3.61892,2432.7,2432.6,0.41114]
[1728364631120,3.2078,2432.7,2432.6,0.41114]
[1728364631416,0.41115,2432.6,2432.5,0.41115]
[1728364631916,0.41116,2432.5,2432.4,1.21136]
[1728364635122,0.80005,2432.6,2432.5,0.41116]
[1728364635924,0.3889,2432.6,2432.4,0.8002]
[1728364636122,0.41116,2432.5,2432.4,1.21136]
[1728364636632,1.89116,2432.5,2432.4,1.21136]
[1728364637826,1.48,2432.5,2432.4,1.21136]
[1728364641633,1.48,2432.5,2432.1,3.3038]
[1728364641930,0.41124,2432.1,2432.0,0.41123]
[1728364642121,1.89123,2432.1,2432.0,0.41124]
[1728364643128,0.41125,2432.0,2431.9,0.41125]
[1728364643323,0.82315,2432.0,2431.9,0.41125]
[1728364644733,0.4119,2432.0,2431.9,0.41125]
[1728364645429,0.82314,2432.0,2431.9,0.41125]
[1728364646223,0.4119,2432.0,2431.7,0.3862]
[1728364646433,0.80847,2431.9,2431.8,0.41127]
[1728364646622,0.3972,2431.9,2431.8,0.41127]
[1728364647624,0.80846,2431.9,2431.8,0.41127]
[1728364648027,0.3972,2431.9,2431.8,0.41127]
[1728364652934,0.80846,2431.9,2431.8,0.41127]
[1728364653124,0.3972,2431.9,2431.8,0.41127]
[1728364653331,0.80846,2431.9,2431.8,0.41127]
[1728364653534,0.3972,2431.9,2431.8,0.41127]
[1728364656337,0.80846,2431.9,2431.8,0.41127]
[1728364656538,0.3972,2431.9,2431.8,0.41127]
[1728364656739,0.80846,2431.9,2431.8,0.41127]
[1728364657435,7.717,2431.9,2431.5,0.41131]
[1728364657739,7.717,2431.9,2431.4,0.41134]
[1728364657740,0.41134,2431.5,2431.4,0.41134]
[1728364658132,0.41134,2431.5,2431.3,0.3907]
[1728364658133,0.405,2431.6,2431.3,0.3907]
[1728364658328,0.4118,2431.4,2431.3,0.80206]
[1728364659033,0.81631,2431.6,2431.5,0.41133]
[1728364661139,0.81631,2431.6,2431.3,0.3907]
[1728364661140,0.405,2431.6,2431.3,0.3907]
[1728364661336,0.41133,2431.5,2431.4,0.41133]
[1728364663456,0.405,2431.6,2431.3,0.3907]
[1728364663633,0.41134,2431.4,2431.3,0.3907]
[1728364663940,0.41139,2431.2,2431.1,0.41139]
[1728364664141,0.8407,2431.3,2431.0,0.8213]
[1728364664336,0.41139,2431.2,2431.1,0.41139]
[1728364664639,0.41139,2431.1,2430.6,3.29640009]
[1728364664845,3.21,2431.1,2430.7,0.4009]
[1728364665144,0.41142,2431.0,2430.9,0.41143]
[1728364665446,3.21,2431.1,2430.7,0.4009]
[1728364665639,4.23851,2431.1,2430.7,0.4009]
[1728364665942,0.41143,2430.9,2430.8,0.41144]
[1728364666141,0.41143,2430.9,2430.7,0.4009]
[1728364666142,0.41144,2430.8,2430.7,0.81235]
[1728364666340,1.21454,2430.9,2430.8,0.41144]
[1728364666643,2.69454,2430.9,2430.8,0.41144]
[1728364667339,2.69454,2430.9,2430.7,0.81235]
[1728364667540,0.4126,2430.8,2430.7,0.81235]
[1728364670842,0.4126,2430.8,2430.6,0.41147]
[1728364670843,0.41146,2430.7,2430.6,0.41147]
[1728364671143,1.48,2430.7,2430.4,1.2148]
[1728364671346,0.4126,2430.8,2430.4,0.812]
[1728364671347,1.48,2430.5,2430.4,0.812]
[1728364671650,1.89149,2430.5,2430.4,0.812]
[1728364671850,1.48,2430.5,2430.4,0.812]
[1728364675344,1.89149,2430.5,2430.4,0.4005]
[1728364675646,1.89149,2430.5,2430.4,0.81201]
[1728364680444,0.41149,2430.6,2430.4,0.81201]
[1728364680646,1.48,2430.5,2430.4,0.81201]
[1728364681146,3.2078,2430.7,2430.6,0.41148]
[1728364681344,4.6878,2431.1,2430.8,0.41144]
[1728364681550,3.2078,2431.1,2431.0,0.41141]
[1728364681748,0.41141,2431.0,2430.9,0.4256]
[1728364682047,1.89141,2431.0,2430.9,0.83703]
[1728364682246,1.89141,2431.0,2430.9,0.4256]
[1728364682447,3.21,2431.0,2430.7,0.41145]
[1728364682643,0.8558,2430.9,2430.7,0.41146]
[1728364682850,0.41144,2430.8,2430.7,0.41146]
[1728364683445,0.8558,2430.9,2430.6,0.8542]
[1728364683645,1.26723,2430.9,2430.8,0.41144]
[1728364683842,3.21,2431.1,2430.6,0.8542]
[1728364684047,3.21,2431.1,2431.0,0.41141]
[1728364684649,3.6333,2431.3,2431.2,0.41138]
[1728364685249,3.21,2431.3,2431.2,0.41138]
[1728364685447,3.2078,2431.4,2431.3,0.41136]
[1728364685957,0.41137,2431.3,2431.2,0.41137]
[1728364686150,3.21,2431.2,2431.1,0.41139]
[1728364686351,3.62138,2431.2,2431.1,0.41139]
[1728364686752,0.41139,2431.1,2431.0,0.3929]
[1728364686950,0.41141,2431.0,2430.9,0.41142]
[1728364687255,4.01521,2431.0,2430.9,0.41142]
[1728364688746,3.6038,2431.0,2430.7,1.2069]
[1728364688947,4.01522,2431.0,2430.9,0.41143]
[1728364689748,7.7174,2431.0,2430.7,1.2069]
[1728364689946,0.41144,2430.9,2430.8,0.41143]
[1728364690758,3.6038,2431.0,2430.7,1.2069]
[1728364690961,4.01522,2431.0,2430.9,0.41143]
[1728364691761,0.41144,2430.9,2430.8,0.41144]
[1728364692460,0.41144,2430.9,2430.7,1.2069]
[1728364692461,0.41144,2430.9,2430.7,0.8073]
[1728364692658,0.41144,2430.9,2430.8,0.41144]
[1728364692853,3.21,2430.9,2430.5,0.7955]
[1728364693055,3.62144,2430.9,2430.8,0.41144]
[1728364693465,7.73504,2430.9,2430.8,0.41144]
[1728364694164,7.3236,2430.9,2430.8,0.41144]
[1728364695266,7.73503,2430.9,2430.8,0.41144]
[1728364696062,3.62143,2430.9,2430.8,0.41144]
[1728364696466,7.3236,2430.9,2430.5,0.7955]
[1728364696668,0.41145,2430.8,2430.7,0.41145]
[1728364698464,3.21,2430.9,2430.5,0.7955]
[1728364698665,0.8416,2430.7,2430.5,0.7955]
[1728364698868,0.8416,2430.7,2430.6,0.41148]
[1728364700870,0.4177,2430.7,2430.6,0.41148]
[1728364701065,3.62143,2430.9,2430.8,0.41144]
[1728364701272,4.03713,2430.9,2430.8,0.41144]
[1728364701575,8.15073,2430.9,2430.8,0.41144]
[1728364702473,6.42073,2430.9,2430.8,0.41144]
[1728364703063,2.30713,2430.9,2430.8,0.41144]
[1728364707685,0.41145,2430.8,2430.7,0.41145]
[1728364707979,1.89145,2430.8,2430.7,0.41145]
[1728364708370,1.48,2430.8,2430.5,0.7955]
[1728364708572,0.41147,2430.7,2430.6,0.41146]
[1728364709175,1.48,2430.8,2430.5,0.7955]
[1728364709481,0.41145,2430.8,2430.7,0.41146]
[1728364712278,0.41147,2430.7,2430.6,0.41147]
[1728364712477,1.89147,2430.7,2430.6,0.41147]
[1728364713082,1.48,2430.7,2430.6,0.41147]
[1728364714177,1.89146,2430.7,2430.6,0.41147]
[1728364723086,1.48,2430.7,2430.6,0.41147]
[1728364724091,1.89146,2430.7,2430.6,0.41147]
[1728364724496,0.41148,2430.6,2430.5,1.20698]
[1728364726903,1.48,2430.7,2430.5,0.7955]
[1728364727104,1.89146,2430.7,2430.6,0.41148]
[1728364730902,0.4271,2431.0,2430.7,0.41146]
[1728364731092,1.48,2431.2,2430.7,4.28239003]
[1728364731297,1.48,2431.2,2431.1,0.41139]
[1728364733905,1.48,2431.2,2431.1,4.52499]
[1728364735305,0.41135,2431.4,2431.1,4.52499]
[1728364735306,3.2078,2431.5,2431.1,4.1136]
[1728364735507,3.61913,2431.5,2431.4,0.41134]
[1728364736804,4.6878,2431.5,2431.4,0.41134]
[1728364737004,5.09913,2431.5,2431.4,0.41134]
[1728364737206,1.2514,2431.7,2431.3,0.4061]
[1728364737505,1.2514,2431.7,2431.6,0.41131]
[1728364737506,1.6627,2431.7,2431.6,0.41131]
[1728364738304,1.6627,2431.7,2431.4,0.415]
[1728364738497,1.6627,2431.7,2431.5,0.41132]
[1728364738698,1.48,2431.6,2431.5,0.41132]
[1728364741707,0.4056,2431.9,2431.8,0.41127]
[1728364741906,0.4056,2431.9,2431.5,6.62111]
[1728364741907,3.6134,2432.2,2431.6,3.6332]
[1728364742205,1.48,2432.0,2431.9,0.41126]
[1728364745101,1.48,2432.0,2431.9,4.52326]
[1728364745299,1.93162,2432.5,2432.4,0.41117]
[1728364745300,0.5116,2432.5,2432.4,0.41117]
[1728364745499,5.1135,2432.6,2432.5,0.41116]
[1728364749212,5.52464,2432.6,2432.5,0.41116]
[1728364749714,5.1135,2432.6,2432.5,0.41116]
[1728364750315,5.52464,2432.6,2432.5,0.41116]
[1728364751115,5.1135,2432.6,2432.5,0.41116]
[1728364752614,4.6878,2432.6,2432.5,0.41116]
[1728364752815,3.2078,2432.6,2432.5,0.41116]
[1728364753118,0.096,2433.1,2433.0,0.41107]
[1728364753312,1.48,2433.5,2433.0,2.50766]
[1728364753616,0.9368,2433.7,2433.3,0.41101]
[1728364753617,1.89101,2433.4,2433.3,0.41101]
[1728364753918,1.89101,2433.4,2433.1,0.8405]
[1728364753919,1.48,2433.2,2433.1,1.25156]
[1728364754411,3.62102,2433.3,2433.2,0.41103]
[1728364755012,3.21,2433.3,2433.2,0.41103]
[1728364755518,3.6178,2433.3,2433.2,0.41103]
[1728364757217,3.6178,2433.3,2432.8,3.2078]
[1728364757421,4.0135,2433.2,2433.1,0.41106]
[1728364757613,0.8035,2433.2,2433.1,0.41106]
[1728364758515,1.21454,2433.2,2433.1,0.41106]
[1728364760019,4.42454,2433.2,2432.7,0.8233]
[1728364760324,0.41106,2433.1,2433.0,0.41106]
[1728364761114,4.0135,2433.2,2432.7,0.8233]
[1728364761423,4.42455,2433.2,2433.1,0.41105]
[1728364761917,8.53415,2433.2,2433.1,0.41105]
[1728364762114,11.3309,2433.2,2432.7,0.8233]
[1728364762313,11.3309,2433.2,2432.5,3.3038]
[1728364762314,3.62109,2432.9,2432.8,0.4111]
[1728364762715,0.41111,2432.8,2432.5,0.096]
[1728364762914,1.64621,2432.8,2432.6,0.41113]
[1728364763134,0.41112,2432.7,2432.6,0.41113]
[1728364763313,1.64621,2432.8,2432.7,0.41112]
[1728364764119,1.2351,2432.8,2432.2,3.3038]
[1728364764318,0.41115,2432.6,2432.4,0.41116]
[1728364764520,0.41115,2432.6,2432.5,0.41116]
[1728364765417,3.21,2432.7,2432.2,3.6059]
[1728364765610,0.41118,2432.4,2432.3,0.41118]
[1728364765813,3.21,2432.5,2432.3,0.41118]
[1728364766015,0.8185,2432.4,2432.1,0.4008]
[1728364766224,3.21,2432.3,2431.9,0.3981]
[1728364766413,3.21,2432.1,2431.9,0.3981]
[1728364766614,3.21,2432.1,2432.0,0.41124]
[1728364768722,3.5967,2432.3,2431.8,3.2078]
[1728364768723,6.8067,2432.3,2431.8,3.2078]
[1728364768927,6.8067,2432.3,2432.2,0.41121]
[1728364769123,0.4143,2432.4,2432.3,0.41119]
[1728364770226,6.8119,2432.7,2432.1,0.404]
[1728364770427,0.82094,2432.6,2432.5,0.41114]
[1728364770922,0.4098,2432.6,2432.5,0.41114]
[1728364772122,0.4098,2432.6,2432.4,0.41116]
[1728364772423,0.41116,2432.5,2432.4,0.41116]
[1728364772925,0.41116,2432.5,2432.1,3.6118]
[1728364772926,0.4098,2432.6,2432.1,3.6118]
[1728364773125,0.4098,2432.6,2432.4,0.41116]
[1728364773126,0.82095,2432.6,2432.4,0.41116]
[1728364774227,0.4098,2432.6,2432.5,0.41116]
[1728364775619,0.82094,2432.6,2432.5,0.41116]
[1728364777424,1.22824,2432.6,2432.5,0.41116]
[1728364777628,0.41116,2432.5,2432.4,0.41117]
[1728364778729,1.22825,2432.6,2432.5,0.41116]
[1728364779229,1.22825,2432.6,2432.1,0.404]
[1728364779423,0.41116,2432.5,2432.4,0.41116]
[1728364780524,1.22826,2432.6,2432.1,0.404]
[1728364780724,1.22826,2432.6,2432.5,0.41116]
[1728364781226,0.41116,2432.5,2432.4,0.41117]
[1728364781428,0.4112,2432.3,2432.2,0.4112]
[1728364782833,0.41118,2432.4,2432.3,0.41119]
[1728364785024,1.84497,2432.6,2432.1,0.404]
[1728364785226,0.4112,2432.3,2432.2,0.4112]
[1728364787629,0.41118,2432.4,2432.3,0.41119]
[1728364788938,0.41116,2432.5,2432.4,0.41116]
[1728364789131,1.22824,2432.6,2432.5,0.41116]
[1728364789730,4.52234,2432.6,2432.5,0.41116]
[1728364790439,0.3976,2432.8,2432.3,0.4101]
[1728364790632,0.3976,2432.8,2432.4,0.3863]
[1728364790831,0.41114,2432.6,2432.5,0.41114]
[1728364791234,0.3976,2432.8,2432.4,0.3863]
[1728364791636,0.41111,2432.8,2432.5,0.41116]
[1728364791941,0.41111,2432.8,2432.7,0.41111]
[1728364793932,0.41111,2432.8,2432.4,0.3863]
[1728364794132,0.41113,2432.7,2432.6,0.41113]
[1728364794934,0.41113,2432.7,2432.4,0.3863]
[1728364794935,3.6311,2432.9,2432.4,0.3863]
[1728364795138,0.41112,2432.8,2432.7,0.41112]
[1728364798949,4.041,2432.9,2432.4,0.3863]
[1728364799145,4.4521,2432.9,2432.4,0.3863]
[1728364799353,0.41111,2432.8,2432.7,0.41111]
[1728364799950,4.041,2432.9,2432.4,0.3863]
[1728364800249,4.4521,2432.9,2432.4,1.41423]
[1728364800439,4.4521,2432.9,2432.8,0.41111]
[1728364800845,4.0422,2432.9,2432.8,0.41111]
[1728364801548,4.0422,2432.9,2432.4,1.41423]
[1728364801549,3.6311,2432.9,2432.4,1.41423]
[1728364801749,0.41111,2432.8,2432.7,0.41111]
[1728364804359,0.41114,2432.6,2432.5,0.41116]
[1728364804559,5.09894,2432.6,2432.5,0.41116]
[1728364805152,1.89114,2432.6,2432.5,0.41116]
[1728364805853,1.48,2432.6,2432.5,0.41116]
[1728364806061,0.41113,2432.7,2432.6,0.41114]
[1728364806253,3.6289,2432.9,2432.4,0.3863]
[1728364806465,0.4211,2432.9,2432.8,0.41111]
[1728364806656,3.2078,2433.2,2432.6,1.48]